[Event "FRA-ch Youth U12 2018"]
[Site "Agen"]
[Date "2018.04.16"]
[Round "3"]
[White "Bat, Bilguun"]
[Black "Beurois, Alexandre"]
[Result "1-0"]
[ECO "D02"]
[WhiteElo "1951"]
[BlackElo "1604"]
[Annotator "NA RC"]
[PlyCount "117"]
[EventDate "2018.??.??"]
[EventType "swiss"]
[EventCountry "FRA"]
[SourceTitle "playchess.com"]
[Source "ChessBase"]
[SourceQuality "1"]
[TimeControl "5400+30"]

1. d4 {[%emt 0:00:00]} d5 {[%emt 0:00:30]} 2. Nf3 {[%emt 0:00:00]} e6 {[%emt 0:00:20]} 3. e3 {[%emt 0:00:00]} c6 {[%emt 0:00:13]} 4. Bd3 {[%emt 0:00:00]} f5 {[%emt 0:00:26]} 5. O-O {[%emt 0:00:55]} Nf6 {[%emt 0:00:08]} 6. b3 {[%emt 0:00:04]} Bd6 {[%emt 0:00:16]} 7. Bb2 {[%emt 0:00:07]} O-O {[%emt 0:00:39]} 8. Nbd2 {[%emt 0:00:23]} Nbd7 {[%emt 0:00:34]} 9. c4 {[%emt 0:00:20]} Ne4 {[%emt 0:00:16]} 10. Ne5 {[%emt 0:00:37] D30: Queen's Gambit Declined: Systems without Nc3} Qf6 {[%emt 0:04:00]} (10... Nxe5 11. dxe5 Bb4 12. Nf3 Bd7 13. a3 Ba5 14. Qe2 Qe7 15. b4 Bc7 16. Ne1 a5 17. Nc2 Ra7 {1-0 (46) Bindrich,F (2604)-Bayer,B (2411) Austria 2018}) 11. f4 {[%emt 0:01:09]} g5 {[%emt 0:13:33]} 12. Bxe4 {[%emt 0:03:54]} fxe4 $146 {[%emt 0:06:12]} ({Predecessor:} 12... dxe4 13. c5 Bc7 14. Qh5 gxf4 15. Nxe4 Qe7 16. Nd6 Nxe5 17. dxe5 fxe3 {1-0 (32) Polatel,A (2154)-Sahin,O (2106) Konya 2015}) 13. Qg4 {[%emt 0:01:13]} Be7 $2 {[%emt 0:04:18]} (13... Qf5 $16) 14. fxg5 {[%emt 0:03:57]} Nxe5 {[%emt 0:04:46]} 15. dxe5 {[%emt 0:04:37]} Qxg5 {[%emt 0:02:19]} 16. Rxf8+ {[%emt 0:00:21]} Kxf8 {[%emt 0:00:22]} 17. Qh3 {[%emt 0:01:16]} Kg7 {[%emt 0:02:56]} 18. Rd1 {[%emt 0:06:58]} Bc5 {[%emt 0:06:17]} 19. Bd4 {[%emt 0:03:29]} Bb4 {[%emt 0:05:47]} (19... Be7 $11) 20. Nf1 {[%emt 0:07:38]} Bd7 {[%emt 0:06:06]} 21. cxd5 {[%emt 0:00:15]} cxd5 {[%emt 0:00:12]} 22. Rc1 {[%emt 0:01:20]} Rc8 {[%emt 0:11:29]} 23. Rxc8 {[%emt 0:00:46]} Bxc8 {[%emt 0:00:07]} 24. Bxa7 {[%emt 0:00:54]} Qh6 {[%emt 0:03:24]} 25. Qg4+ {[%emt 0:14:33]} Qg6 {[%emt 0:00:34]} 26. Qh4 {[%emt 0:00:23]} Bd7 {[%emt 0:07:06]} 27. Bd4 {[%emt 0:00:35]} Bb5 $16 {[%emt 0:01:47]} 28. Ng3 {[%emt 0:00:30]} Bd3 $2 {[%emt 0:03:54]} (28... Kf7 $16 {is more resistant.}) 29. Nh5+ {[%emt 0:00:50]} Kf7 {[%emt 0:01:20]} 30. Nf4 {[%emt 0:01:03]} Qg7 {[%emt 0:04:57]} 31. Qd8 {[%emt 0:01:04]} Be7 {[%emt 0:04:33]} 32. Qd7 {[%emt 0:01:06]} Qg4 {[%emt 0:00:34]} 33. h3 {[%emt 0:00:11]} Qf5 {[%emt 0:02:36]} 34. Bc5 {[%emt 0:00:34]} Qg5 {[%emt 0:01:03]} 35. Qxe6+ {[%emt 0:00:16]} Kf8 {[%emt 0:00:49]} 36. Qxd5 {[%emt 0:00:24]} Ke8 {[%emt 0:01:26]} 37. Bxe7 {[%emt 0:00:29]} Qxe7 {[%emt 0:00:22]} 38. Qg8+ {[%emt 0:01:47]} Kd7 {[%emt 0:00:16]} 39. e6+ {[%emt 0:00:09]} Kd6 {[%emt 0:00:23]} 40. Qb8+ {[%emt 0:00:27]} Kc6 {[%emt 0:01:20]} 41. Qc8+ {[%emt 0:00:07]} Kd6 {[%emt 0:01:04]} 42. Qd7+ {[%emt 0:00:19]} Qxd7 {[%emt 0:00:21]} 43. exd7 {[%emt 0:00:05]} Kxd7 {[%emt 0:00:10]} 44. Nxd3 {[%emt 0:00:06]} exd3 {[%emt 0:00:26]} 45. Kf2 Kd6 {[%emt 0:01:28]} 46. e4 {[%emt 0:00:15]} Ke5 {[%emt 0:00:18]} 47. Ke3 {[%emt 0:00:07]} d2 {[%emt 0:00:10]} 48. Kxd2 {[%emt 0:00:04]} Kxe4 {[%emt 0:00:22]} 49. a4 {[%emt 0:00:08]} h5 {[%emt 0:00:43]} 50. g4 {[%emt 0:00:34]} h4 {[%emt 0:00:25]} 51. b4 {[%emt 0:00:05]} Kf4 {[%emt 0:00:18]} 52. b5 {[%emt 0:00:06]} Kg3 {[%emt 0:00:28]} 53. g5 {[%emt 0:00:06]} Kxh3 {[%emt 0:00:10]} 54. g6 {[%emt 0:00:05]} Kh2 {[%emt 0:00:16]} 55. g7 {[%emt 0:00:05]} b6 {[%emt 0:00:23]} 56. g8=Q {[%emt 0:00:10]} h3 {[%emt 0:00:14]} 57. Ke2 {[%emt 0:00:08]} Kh1 {[%emt 0:00:22]} 58. Kf2 {[%emt 0:00:04]} h2 {[%emt 0:00:27]} 59. Qd5# {[%emt 0:00:05]} 1-0

[Event "FRA-ch Youth U12 2018"]
[Site "Agen"]
[Date "2018.04.16"]
[Round "3"]
[White "Cornileau, Juliette"]
[Black "Gagua, Nani"]
[Result "1-0"]
[ECO "B23"]
[WhiteElo "1654"]
[BlackElo "1335"]
[Annotator "NA RC"]
[PlyCount "93"]
[EventDate "2018.??.??"]
[EventType "swiss"]
[EventCountry "FRA"]
[SourceTitle "playchess.com"]
[Source "ChessBase"]
[SourceQuality "1"]
[TimeControl "5400+30"]

1. e4 {[%emt 0:00:00]} c5 {[%emt 0:00:05]} 2. Nc3 {[%emt 0:00:00]} d6 {[%emt 0:00:17]} 3. Bb5+ {[%emt 0:01:08]} Bd7 {[%emt 0:00:16]} 4. Bxd7+ {[%emt 0:00:19]} Nxd7 {[%emt 0:00:02]} 5. f4 {[%emt 0:00:34]} Ngf6 {[%emt 0:00:32]} 6. d3 {[%emt 0:00:11]} Nb6 {[%emt 0:05:12]} 7. Nf3 {[%emt 0:01:55]} d5 {[%emt 0:01:16]} 8. e5 {[%emt 0:01:30]} Nfd7 {[%emt 0:05:37]} 9. Qe2 {[%emt 0:06:53]} e6 {[%emt 0:00:56]} 10. O-O {[%emt 0:03:13]} Be7 {[%emt 0:01:44]} 11. Ne1 {[%emt 0:16:22]} Qc8 {[%emt 0:04:24]} 12. Qg4 {[%emt 0:04:22]} O-O {[%emt 0:01:33]} 13. Nf3 {[%emt 0:03:31]} f5 {[%emt 0:06:44]} 14. Qg3 {[%emt 0:09:01]} d4 {[%emt 0:00:34]} 15. Ne2 {[%emt 0:02:34]} Nd5 {[%emt 0:01:02]} 16. a3 {[%emt 0:04:48]} b5 {[%emt 0:03:32]} 17. c3 {[%emt 0:01:57]} dxc3 {[%emt 0:03:51]} 18. Nxc3 {[%emt 0:01:52]} Nxc3 {[%emt 0:00:40]} 19. bxc3 {[%emt 0:00:10]} Nb6 {[%emt 0:00:17]} 20. d4 {[%emt 0:05:07]} Nd5 {[%emt 0:00:36]} 21. Bd2 {[%emt 0:00:25]} c4 {[%emt 0:05:18]} 22. Ne1 {[%emt 0:05:56]} Qd8 {[%emt 0:04:34]} 23. Nc2 {[%emt 0:04:47]} Qa5 {[%emt 0:00:43]} 24. Nb4 {[%emt 0:02:33]} Bxb4 {[%emt 0:07:27]} 25. axb4 {[%emt 0:00:50]} Qd8 {[%emt 0:00:17]} 26. Ra6 {[%emt 0:01:40]} Nb6 {[%emt 0:00:46]} 27. Rfa1 {[%emt 0:01:50]} Rf7 {[%emt 0:01:15]} 28. Qf3 {[%emt 0:00:59]} Qc8 {[%emt 0:00:26]} 29. Rxb6 {[%emt 0:00:26]} Rb8 {[%emt 0:06:34]} 30. Rxb8 Qxb8 {[%emt 0:00:03]} 31. Qc6 {[%emt 0:01:01]} Re7 {[%emt 0:01:04]} 32. Ra5 {[%emt 0:00:30]} Qb7 {[%emt 0:00:29]} 33. Qxb5 {[%emt 0:01:50]} Qb6 {[%emt 0:00:56]} 34. Qxc4 {[%emt 0:02:14]} Rc7 {[%emt 0:00:34]} 35. Qa6 {[%emt 0:00:25]} Kf7 {[%emt 0:00:32]} 36. Qxb6 {[%emt 0:00:22]} axb6 {[%emt 0:00:02]} 37. Ra6 {[%emt 0:00:10]} Rb7 {[%emt 0:00:09]} 38. c4 {[%emt 0:00:10]} Ke7 {[%emt 0:00:16]} 39. Kf2 {[%emt 0:00:47]} Kd7 {[%emt 0:00:05]} 40. Ke3 {[%emt 0:00:11]} Kc6 {[%emt 0:00:20]} 41. b5+ {[%emt 0:00:30]} Kd7 {[%emt 0:00:11]} 42. d5 {[%emt 0:00:17]} g6 {[%emt 0:00:14]} 43. d6 {[%emt 0:00:39]} h6 {[%emt 0:00:11]} 44. Kd3 {[%emt 0:00:12]} g5 {[%emt 0:00:13]} 45. fxg5 {[%emt 0:00:09]} hxg5 {[%emt 0:00:06]} 46. Bxg5 {[%emt 0:00:07]} Ke8 {[%emt 0:00:50]} 47. Be3 {[%emt 0:00:17]} 1-0

[Event "FRA-ch Youth U12 2018"]
[Site "Agen"]
[Date "2018.04.16"]
[Round "3"]
[White "Auffray-Bonnet, Gaspard"]
[Black "Droin, Augustin"]
[Result "0-1"]
[ECO "B50"]
[WhiteElo "1624"]
[BlackElo "1975"]
[Annotator "NA RC"]
[PlyCount "61"]
[EventDate "2018.??.??"]
[EventType "swiss"]
[EventCountry "FRA"]
[SourceTitle "playchess.com"]
[Source "ChessBase"]
[SourceQuality "1"]
[TimeControl "5400+30"]

1. e4 {[%emt 0:00:00]} c5 {[%emt 0:00:06]} 2. Nf3 {[%emt 0:00:00]} d6 {[%emt 0:00:03]} 3. c3 {[%emt 0:00:13]} Nf6 {[%emt 0:00:14]} 4. Bd3 {[%emt 0:01:09]} Nc6 {[%emt 0:00:24]} 5. Bc2 {[%emt 0:00:12]} e5 {[%emt 0:00:34]} 6. h3 {[%emt 0:00:15]} Qc7 {[%emt 0:00:42] B50: Sicilian: 2...d6, Miscellaneous} (6... Be7 7. d4 cxd4 8. cxd4 O-O 9. Nc3 exd4 10. Nxd4 d5 11. exd5 Nxd5 12. Nxc6 bxc6 13. Nxd5 cxd5 14. O-O Bf6 {1-0 (38) Kunin,V (2592)-Ochsner,B (2417) Barcelona 2016}) 7. O-O {[%emt 0:00:23]} h6 $146 {[%emt 0:00:53]} ({Predecessor:} 7... Be7 8. d3 O-O 9. Na3 d5 10. Nb5 Qb6 11. a4 d4 12. Na3 Qc7 13. Bb3 a6 14. Nc4 Be6 15. cxd4 cxd4 16. Ng5 Bxc4 17. Bxc4 {1-0 (26) Kondenko,A (2325)-Pravdiuk,V (2304) Sochi 2005}) 8. Re1 {[%emt 0:00:40]} Bd7 {[%emt 0:00:34]} 9. a4 {[%emt 0:00:14]} g5 {[%emt 0:01:57]} 10. d4 {[%emt 0:00:49]} Rg8 {[%emt 0:00:20]} 11. g4 {[%emt 0:03:40]} h5 {[%emt 0:01:07]} 12. d5 {[%emt 0:01:52]} Ne7 {[%emt 0:01:30]} 13. Nh2 {[%emt 0:01:02]} Ng6 {[%emt 0:10:41]} 14. Na3 {[%emt 0:04:59]} Nf4 {[%emt 0:00:22]} 15. Bxf4 {[%emt 0:00:02]} gxf4 {[%emt 0:00:05]} 16. f3 {[%emt 0:00:42]} hxg4 {[%emt 0:00:16]} 17. hxg4 {[%emt 0:00:23]} Nh5 {[%emt 0:00:23]} 18. Kf2 {[%emt 0:05:19]} Qd8 {[%emt 0:01:00]} 19. Ke2 {[%emt 0:05:29]} Qh4 {[%emt 0:02:54]} 20. gxh5 {[%emt 0:02:09]} Qxh2+ {[%emt 0:00:16]} 21. Kd3 {[%emt 0:00:18]} Rg3 {[%emt 0:00:06]} 22. Qe2 {[%emt 0:00:54]} Qxh5 {[%emt 0:00:31]} 23. Bd1 {[%emt 0:01:18]} f5 {[%emt 0:00:33]} 24. Kc2 $19 {[%emt 0:00:51]} Qg6 {[%emt 0:00:55]} 25. Qc4 {[%emt 0:03:39]} Rg2+ {[%emt 0:05:08]} 26. Re2 {[%emt 0:01:42]} fxe4 {[%emt 0:01:45]} 27. fxe4 {[%emt 0:00:14]} f3 {[%emt 0:00:20]} 28. Rd2 {[%emt 0:04:21]} Bh6 {[%emt 0:00:27]} 29. Nb1 {[%emt 0:00:12]} Bxd2 {[%emt 0:02:04]} 30. Nxd2 {[%emt 0:00:01]} Qg5 31. Qd3 0-1

[Event "FRA-ch Youth U12 2018"]
[Site "Agen"]
[Date "2018.04.16"]
[Round "3"]
[White "Diez, Agathe"]
[Black "Berezovsky, Fiorina"]
[Result "0-1"]
[ECO "B33"]
[WhiteElo "1373"]
[BlackElo "1678"]
[Annotator "NA RC"]
[PlyCount "130"]
[EventDate "2018.??.??"]
[EventType "swiss"]
[EventCountry "FRA"]
[SourceTitle "playchess.com"]
[Source "ChessBase"]
[SourceQuality "1"]
[TimeControl "5400+30"]

1. e4 {[%emt 0:00:00]} c5 {[%emt 0:00:19]} 2. Nf3 {[%emt 0:00:00]} Nc6 {[%emt 0:00:19]} 3. d4 {[%emt 0:00:00]} cxd4 {[%emt 0:00:27]} 4. Nxd4 {[%emt 0:00:00]} Nf6 {[%emt 0:00:26]} 5. Nc3 {[%emt 0:00:18]} e6 {[%emt 0:00:21]} 6. Be3 {[%emt 0:00:37]} Bb4 {[%emt 0:00:56]} 7. Nxc6 {[%emt 0:03:30]} bxc6 {[%emt 0:01:20]} 8. Bd3 {[%emt 0:02:28]} O-O {[%emt 0:01:27]} 9. O-O {[%emt 0:00:31]} d5 {[%emt 0:03:27]} 10. Bg5 {[%emt 0:07:08]} h6 {[%emt 0:03:40]} 11. Bxf6 {[%emt 0:08:39]} Qxf6 {[%emt 0:00:32]} 12. exd5 {[%emt 0:01:04]} cxd5 {[%emt 0:01:42]} 13. Na4 {[%emt 0:05:37]} e5 {[%emt 0:04:18]} 14. a3 {[%emt 0:01:41]} Bd6 {[%emt 0:04:14]} 15. c4 {[%emt 0:05:58]} dxc4 {[%emt 0:10:09]} 16. Bxc4 {[%emt 0:00:18]} Bb7 {[%emt 0:01:51]} 17. Nc3 {[%emt 0:01:34]} Rac8 {[%emt 0:03:18]} 18. Bd5 {[%emt 0:01:38]} Bxd5 {[%emt 0:04:58]} 19. Nxd5 {[%emt 0:00:29]} Qg6 {[%emt 0:03:17]} 20. Re1 {[%emt 0:01:31]} Rfe8 {[%emt 0:05:08]} 21. Rc1 {[%emt 0:03:18]} Rxc1 {[%emt 0:04:53]} 22. Qxc1 {[%emt 0:00:44]} Qh5 {[%emt 0:01:22]} 23. Qd2 {[%emt 0:09:19]} Bc5 {[%emt 0:05:49]} 24. b4 {[%emt 0:01:07]} Bd4 {[%emt 0:01:19]} 25. Qc2 {[%emt 0:03:32]} Rd8 {[%emt 0:02:51]} 26. Nc3 {[%emt 0:01:56]} Rc8 {[%emt 0:00:59]} 27. Qe2 {[%emt 0:02:29]} Qxe2 {[%emt 0:02:32]} 28. Nxe2 {[%emt 0:00:09]} Rc2 {[%emt 0:01:23]} 29. Nxd4 {[%emt 0:01:27]} exd4 {[%emt 0:00:08]} 30. Kf1 {[%emt 0:00:53]} Kf8 {[%emt 0:01:39]} 31. Rd1 {[%emt 0:00:40]} Rc4 {[%emt 0:00:34]} 32. Ke2 {[%emt 0:00:41]} Rc2+ {[%emt 0:01:14]} 33. Kf3 {[%emt 0:00:21]} Rc3+ {[%emt 0:00:52]} 34. Ke4 {[%emt 0:00:59]} Rxa3 {[%emt 0:00:30]} 35. Rxd4 {[%emt 0:00:09]} Ra2 {[%emt 0:00:24]} 36. Ke3 {[%emt 0:00:52]} Ke7 {[%emt 0:00:36]} 37. Rd2 {[%emt 0:01:32]} Rxd2 {[%emt 0:01:43]} 38. Kxd2 {[%emt 0:00:06]} Kd6 {[%emt 0:00:10]} 39. Kc3 {[%emt 0:00:22]} Kd5 {[%emt 0:01:58]} 40. Kd3 {[%emt 0:00:12]} a6 {[%emt 0:01:08]} 41. f3 {[%emt 0:00:10]} h5 {[%emt 0:02:59]} 42. g3 {[%emt 0:01:49]} f6 {[%emt 0:04:19]} 43. h4 {[%emt 0:01:24]} f5 {[%emt 0:00:49]} 44. Kc3 {[%emt 0:00:41]} Ke5 {[%emt 0:02:59]} 45. Kc4 {[%emt 0:02:52]} f4 {[%emt 0:01:28]} 46. gxf4+ {[%emt 0:02:06]} Kxf4 {[%emt 0:00:12]} 47. Kc5 {[%emt 0:00:44]} g5 {[%emt 0:00:14]} 48. hxg5 {[%emt 0:04:16]} Kxg5 {[%emt 0:00:09]} 49. Kb6 {[%emt 0:00:06]} h4 {[%emt 0:00:05]} 50. Kxa6 {[%emt 0:00:07]} h3 {[%emt 0:00:10]} 51. b5 {[%emt 0:00:15]} h2 {[%emt 0:00:17]} 52. b6 {[%emt 0:00:04]} h1=Q {[%emt 0:00:10]} 53. b7 {[%emt 0:00:09]} Qa1+ {[%emt 0:00:32]} 54. Kb6 {[%emt 0:00:14]} Qb2+ {[%emt 0:00:07]} 55. Ka7 {[%emt 0:00:32]} Qa3+ {[%emt 0:00:06]} 56. Kb6 {[%emt 0:00:06]} Qb4+ {[%emt 0:00:08]} 57. Kc6 {[%emt 0:00:18]} Kf6 {[%emt 0:00:20]} 58. Kc7 {[%emt 0:00:51]} Qc5+ {[%emt 0:00:18]} 59. Kb8 {[%emt 0:00:20]} Ke7 {[%emt 0:00:20]} 60. f4 {[%emt 0:00:31]} Kd6 {[%emt 0:01:07]} 61. Ka8 {[%emt 0:01:05]} Qa5+ {[%emt 0:00:24]} 62. Kb8 {[%emt 0:00:15]} Kc6 {[%emt 0:00:34]} 63. f5 {[%emt 0:00:20]} Qxf5 {[%emt 0:00:38]} 64. Ka8 {[%emt 0:00:22]} Qa5+ {[%emt 0:00:18]} 65. Kb8 {[%emt 0:00:10]} Qb6 {[%emt 0:00:23]} 0-1

[Event "FRA-ch Youth U12 2018"]
[Site "Agen"]
[Date "2018.04.16"]
[Round "3"]
[White "Costa, My-Lan"]
[Black "Bousmaha, Leila"]
[Result "1/2-1/2"]
[ECO "C47"]
[WhiteElo "1360"]
[BlackElo "1538"]
[Annotator "NA RC"]
[PlyCount "90"]
[EventDate "2018.??.??"]
[EventType "swiss"]
[EventCountry "FRA"]
[SourceTitle "playchess.com"]
[Source "ChessBase"]
[SourceQuality "1"]
[TimeControl "5400+30"]

1. e4 {[%emt 0:00:00]} e5 {[%emt 0:00:07]} 2. Nf3 {[%emt 0:00:00]} Nc6 {[%emt 0:00:05]} 3. Nc3 {[%emt 0:00:00]} Nf6 {[%emt 0:00:07]} 4. d4 {[%emt 0:00:00]} exd4 {[%emt 0:00:08]} 5. Nxd4 {[%emt 0:00:00]} Bb4 {[%emt 0:00:49]} 6. Nxc6 {[%emt 0:00:00]} bxc6 {[%emt 0:00:04]} 7. Bd3 {[%emt 0:00:06]} d5 {[%emt 0:00:47]} 8. exd5 {[%emt 0:00:07]} cxd5 {[%emt 0:00:09]} 9. O-O {[%emt 0:00:05]} O-O {[%emt 0:00:31]} 10. Bg5 {[%emt 0:00:19]} c6 {[%emt 0:00:20]} 11. Qf3 {[%emt 0:00:17]} Be7 {[%emt 0:00:24]} 12. Ne2 {[%emt 0:00:29]} Bg4 {[%emt 0:01:14]} 13. Qg3 {[%emt 0:01:02]} Bxe2 {[%emt 0:00:55]} 14. Bxe2 {[%emt 0:00:27]} Ne4 {[%emt 0:00:15]} 15. Bxe7 {[%emt 0:01:59]} Qxe7 {[%emt 0:00:14]} 16. Qe3 {[%emt 0:00:50]} f5 {[%emt 0:02:53]} 17. f3 {[%emt 0:07:23]} f4 {[%emt 0:00:33]} 18. Qd4 {[%emt 0:00:47]} Nd6 {[%emt 0:06:04]} 19. Rfe1 {[%emt 0:02:45]} Qc7 {[%emt 0:02:20]} 20. Bd3 {[%emt 0:01:07]} Qb6 {[%emt 0:02:03]} 21. Qxb6 {[%emt 0:00:19]} axb6 {[%emt 0:00:17]} 22. Re6 {[%emt 0:00:33]} Rad8 {[%emt 0:00:54]} 23. Re7 {[%emt 0:01:41]} Rfe8 {[%emt 0:02:29]} 24. Rae1 {[%emt 0:00:38]} g6 {[%emt 0:02:55]} 25. Kf2 {[%emt 0:01:29]} c5 {[%emt 0:01:12]} 26. R1e6 {[%emt 0:02:08]} Rxe7 {[%emt 0:00:39]} 27. Rxe7 {[%emt 0:00:09]} c4 {[%emt 0:00:12]} 28. Bf1 {[%emt 0:00:40]} Nf5 {[%emt 0:00:44]} 29. Re6 {[%emt 0:01:39]} Rd6 {[%emt 0:00:22]} 30. Rxd6 {[%emt 0:00:38]} Nxd6 {[%emt 0:00:07]} 31. g4 {[%emt 0:00:28]} Kf7 {[%emt 0:01:08]} 32. Ke2 {[%emt 0:00:56]} Kf6 {[%emt 0:00:09]} 33. Kd2 {[%emt 0:00:23]} d4 {[%emt 0:00:55]} 34. a4 {[%emt 0:03:19]} Ke5 {[%emt 0:01:13]} 35. b4 {[%emt 0:02:34]} Kd5 {[%emt 0:00:35]} 36. h3 {[%emt 0:02:08]} g5 {[%emt 0:00:16]} 37. Be2 {[%emt 0:00:33]} c3+ {[%emt 0:03:05]} 38. Kc1 {[%emt 0:01:37]} Nc4 {[%emt 0:02:48]} 39. Kb1 {[%emt 0:01:07]} Ne3 {[%emt 0:01:37]} 40. Bd3 {[%emt 0:00:38]} h6 {[%emt 0:00:20]} 41. Ka2 {[%emt 0:00:47]} Nc4 {[%emt 0:00:51]} 42. Be2 {[%emt 0:00:38]} Ne5 {[%emt 0:01:58]} 43. Kb3 {[%emt 0:01:36]} Kc6 {[%emt 0:01:59]} 44. Bb5+ {[%emt 0:00:52]} Kc7 {[%emt 0:00:19]} 45. Be2 {[%emt 0:00:10]} Kb7 {[%emt 0:00:47]} 1/2-1/2

[Event "FRA-ch Youth U12 2018"]
[Site "Agen"]
[Date "2018.04.16"]
[Round "3"]
[White "Natchkebia, Valeria"]
[Black "Pentcheff, Laura"]
[Result "0-1"]
[ECO "B08"]
[WhiteElo "1300"]
[BlackElo "1512"]
[Annotator "NA RC"]
[PlyCount "34"]
[EventDate "2018.??.??"]
[EventType "swiss"]
[EventCountry "FRA"]
[SourceTitle "playchess.com"]
[Source "ChessBase"]
[SourceQuality "1"]
[TimeControl "5400+30"]

1. e4 {[%emt 0:00:00]} d6 {[%emt 0:00:11]} 2. d4 {[%emt 0:00:00]} Nf6 {[%emt 0:00:07]} 3. Nc3 {[%emt 0:00:00]} g6 {[%emt 0:00:06]} 4. Nf3 {[%emt 0:00:43]} Bg7 {[%emt 0:00:10]} 5. Bc4 {[%emt 0:00:29]} O-O {[%emt 0:00:17]} 6. O-O {[%emt 0:00:07]} c6 {[%emt 0:00:18]} 7. e5 {[%emt 0:00:53]} dxe5 {[%emt 0:00:25]} 8. dxe5 {[%emt 0:00:18]} Ng4 {[%emt 0:00:41]} 9. Re1 {[%emt 0:00:38]} b5 {[%emt 0:00:54]} 10. Bd3 {[%emt 0:00:43]} b4 {[%emt 0:00:55]} 11. Na4 {[%emt 0:01:03]} Qa5 {[%emt 0:02:33]} 12. h3 {[%emt 0:04:25]} Nxe5 {[%emt 0:00:31]} 13. b3 {[%emt 0:01:30]} Nxf3+ {[%emt 0:00:29]} 14. Qxf3 {[%emt 0:00:26]} Bxa1 {[%emt 0:00:00]} 15. Bh6 {[%emt 0:02:33]} Bg7 {[%emt 0:01:00]} 16. Bxg7 {[%emt 0:00:10]} Kxg7 {[%emt 0:03:55]} 17. Rxe7 {[%emt 0:00:11]} Be6 {[%emt 0:00:30]} 0-1